bitfinex-derivatives/quotes_ETHF0:USTF0_20250905
["timestamp","ask_amount","ask_price","bid_price","bid_amount"]
[1757062936794,0.8529,4402.7,4402.6,0.40881]
[1757062937092,1.26171,4402.7,4402.6,0.63981]
[1757062937894,1.26171,4402.7,4402.2,3.2078]
[1757062937895,1.26174,4402.3,4402.2,3.2078]
[1757062938094,1.26174,4402.3,4402.2,3.4398]
[1757062938896,1.26174,4402.3,4402.2,3.2078]
[1757062939195,1.26174,4402.3,4402.2,3.4388]
[1757062940191,1.26174,4402.3,4402.2,3.2078]
[1757062940396,1.26339,4401.8,4401.7,2.83196433]
[1757062940595,1.26339,4401.8,4401.7,3.06296433]
[1757062940800,1.26339,4401.8,4401.7,2.83196433]
[1757062940996,1.26339,4401.8,4401.7,3.06396433]
[1757062941191,1.26339,4401.8,4401.7,2.83196433]
[1757062941392,1.26339,4401.8,4401.7,3.06396433]
[1757062941794,1.26339,4401.8,4401.7,2.83196433]
[1757062941994,5.26339,4401.8,4401.7,2.83196433]
[1757062942591,5.49057,4401.8,4401.7,2.45116433]
[1757062942795,5.26339,4401.8,4401.7,2.45116433]
[1757062943391,1.26339,4401.8,4401.7,3.35246433]
[1757062943601,1.26339,4401.8,4401.7,2.45116433]
[1757062943805,1.26339,4401.8,4401.7,2.68216433]
[1757062944201,1.26339,4401.8,4401.7,1.0788]
[1757062944396,1.26339,4401.8,4401.7,1.4877]
[1757062944701,0.88224,4401.4,4401.3,0.4924]
[1757062944996,1.26344,4401.4,4401.3,0.7234]
[1757062945198,1.26344,4401.4,4401.3,1.13233]
[1757062945400,1.26344,4401.4,4401.3,1.48773]
[1757062946498,0.79008,4401.9,4401.6,0.3554]
[1757062946800,0.79002,4402.5,4402.4,1.25663]
[1757062947000,1.02992,4402.5,4402.4,1.25663]
[1757062947200,1.02992,4402.5,4402.4,1.48863]
[1757062947399,1.17742,4402.5,4402.4,1.48863]
[1757062947999,1.41082,4402.5,4402.4,0.7244]
[1757062950595,1.41082,4402.5,4402.4,1.13323]
[1757062950899,1.41082,4402.5,4402.4,0.7244]
[1757062951702,0.3812,4403.1,4403.0,0.40877]
[1757062951898,0.78997,4403.1,4403.0,1.13317]
[1757062952401,0.78997,4403.1,4403.0,1.48857]
[1757062953103,1.26327,4403.1,4403.0,0.7244]
[1757062954502,1.26327,4403.1,4403.0,0.4924]
[1757062954702,1.26327,4403.1,4403.0,0.7244]
[1757062955398,0.40875,4403.2,4403.1,0.40876]
[1757062955604,0.40875,4403.3,4403.2,1.25654]
[1757062955811,0.40875,4403.3,4403.2,1.48854]
[1757062956403,1.02985,4403.3,4403.2,1.0798]
[1757062956603,1.26325,4403.3,4403.2,0.7244]
[1757062958106,1.26325,4403.3,4403.2,0.4924]
[1757062958310,1.26325,4403.3,4403.2,0.7234]
[1757062960112,1.26325,4403.3,4403.2,0.4924]
[1757062960410,1.41077,4403.0,4402.9,3.4473]
[1757062960609,1.41077,4403.0,4402.9,3.6783]
[1757062961005,1.41077,4403.0,4402.9,3.9312]
[1757062962008,0.8545,4402.4,4402.3,3.4473]
[1757062962213,1.26333,4402.4,4402.3,3.4388]
[1757062962509,1.26337,4401.9,4401.8,3.4473]
[1757062962908,1.26337,4401.9,4401.8,3.2078]
[1757062963099,1.26337,4401.9,4401.8,3.4388]
[1757062963303,0.88222,4401.4,4401.3,3.73974096]
[1757062963503,1.26342,4401.4,4401.3,3.73974096]
[1757062963712,1.26342,4401.4,4401.3,3.97074096]
[1757062964014,1.26342,4401.4,4401.3,3.73974096]
[1757062964406,1.26342,4401.4,4401.3,3.97074096]
[1757062964816,1.26342,4401.4,4401.3,3.73974096]
[1757062965116,1.26342,4401.4,4401.3,3.97074096]
[1757062965613,1.26342,4401.4,4401.3,3.73974096]
[1757062965812,1.26342,4401.4,4401.3,3.97074096]
[1757062967318,1.26342,4401.4,4401.3,3.73974096]
[1757062967518,1.26342,4401.4,4401.3,3.97074096]
[1757062968618,1.26342,4401.4,4401.3,3.7002]
[1757062968818,1.26342,4401.4,4401.3,3.9312]
[1757062969516,1.26342,4401.4,4400.7,1.02247]
[1757062969517,1.38307,4401.2,4400.7,0.4766]
[1757062969721,0.40896,4401.0,4400.9,0.8384]
[1757062969919,1.02136,4401.0,4400.9,0.8384]
[1757062970214,1.25696,4401.0,4400.9,0.8384]
[1757062972116,0.40897,4400.9,4400.8,0.231]
[1757062972321,1.25697,4400.9,4400.8,1.0694]
[1757062973117,1.25697,4400.9,4400.8,0.231]
[1757062973318,1.25697,4400.9,4400.5,2.82056433]
[1757062973319,0.40899,4400.6,4400.5,2.82056433]
[1757062973621,0.40899,4400.6,4400.5,3.29716433]
[1757062973822,0.40899,4400.6,4400.5,3.65896433]
[1757062974720,0.40899,4400.6,4400.5,4.06796433]
[1757062975118,0.40899,4400.6,4400.5,3.42796433]
[1757062975322,8.92403001,4400.6,4400.5,2.45116433]
[1757062976718,8.69679,4400.6,4400.5,2.45116433]
[1757062977223,4.46479,4400.6,4400.5,2.45116433]
[1757062977415,4.0558,4400.6,4400.2,0.232]
[1757062977611,0.4873,4400.3,4400.2,0.232]
[1757062977817,0.848,4400.3,4400.2,0.232]
[1757062978523,0.848,4400.3,4400.1,0.232]
[1757062979025,0.848,4400.3,4399.6,0.3618]
[1757062979225,0.2517,4399.7,4399.6,0.4766]
[1757062979521,0.2517,4399.7,4399.6,1.0704]
[1757062980224,3.2078,4400.1,4400.0,0.9768]
[1757062980420,3.2078,4400.1,4400.0,1.2088]
[1757062980722,3.61684,4400.1,4400.0,0.9768]
[1757062980922,3.61684,4400.1,4400.0,1.2088]
[1757062981118,3.86854,4400.1,4400.0,1.2088]
[1757062981326,3.61684,4400.1,4400.0,1.2088]
[1757062981526,3.86854,4400.1,4400.0,1.2088]
[1757062981828,4.22924,4400.1,4400.0,1.2088]
[1757062982022,4.46484,4400.1,4400.0,1.0704]
[1757062983727,4.46484,4400.1,4400.0,0.8384]
[1757062983926,4.46484,4400.1,4400.0,1.0704]
[1757062985634,4.46484,4400.1,4400.0,1.2088]
[1757062985635,3.61684,4400.1,4400.0,1.2088]
[1757062985842,0.6124,4400.4,4400.3,0.4766]
[1757062986033,0.40901,4400.5,4400.4,0.8384]
[1757062986330,0.40901,4400.5,4400.4,1.47941]
[1757062986833,0.40901,4400.5,4400.4,1.0704]
[1757062987333,0.66071,4400.5,4400.4,1.0704]
[1757062987833,1.02141,4400.5,4400.4,1.0704]
[1757062988630,1.25701,4400.5,4400.4,1.0704]
[1757062989033,1.25701,4400.5,4400.4,0.8384]
[1757062989234,1.25701,4400.5,4400.4,1.0704]
[1757062992333,1.39451,4400.5,4400.4,1.0704]
[1757062992934,1.39451,4400.5,4400.4,0.8384]
[1757062993135,1.25702,4400.3,4400.2,2.674]
[1757062993340,1.25702,4400.3,4400.2,2.906]
[1757062993736,1.25702,4400.3,4400.2,3.1408]
[1757062993932,1.25702,4400.3,4400.2,2.9088]
[1757062994143,1.25702,4400.3,4400.2,2.906]
[1757062994335,1.25702,4400.3,4400.2,2.674]
[1757062994533,1.25702,4400.3,4400.2,2.906]
[1757062995238,0.1375,4400.0,4399.9,0.2348]
[1757062995439,4.60234,4400.0,4399.9,0.4668]
[1757062995640,4.60234,4400.0,4399.9,0.232]
[1757062996035,4.60234,4400.0,4399.5,1.38589]
[1757062996036,0.66078,4399.6,4399.5,1.38589]
[1757062996343,0.66078,4399.6,4399.5,1.2088]
[1757062996641,0.66078,4399.6,4399.5,1.61789]
[1757062997239,1.02148,4399.6,4399.5,0.9768]
[1757062997432,1.25708,4399.6,4399.5,1.2088]
[1757062997632,1.25708,4399.6,4399.5,1.61789]
[1757062997936,0.40908,4399.7,4399.6,0.40907]
[1757062998140,0.40908,4399.7,4399.6,1.50377]
[1757062999240,0.64208,4399.7,4399.6,1.50377]
[1757062999830,1.21818,4399.7,4399.6,1.50377]
[1757063000031,0.64208,4399.7,4399.6,1.50377]
[1757063000336,0.40908,4399.7,4399.6,1.50377]
[1757063000537,0.98538,4399.7,4399.6,1.50377]
[1757063000843,0.98538,4399.7,4399.6,1.27177]
[1757063001040,0.40908,4399.7,4399.6,1.50377]
[1757063001331,0.98538,4399.7,4399.6,1.50377]
[1757063001536,0.40908,4399.7,4399.6,1.50377]
[1757063001735,0.40908,4399.7,4399.6,1.27177]
[1757063001944,0.40908,4399.7,4399.6,1.50377]
[1757063002145,1.21816,4399.8,4399.7,0.8627]
[1757063002833,1.21816,4399.8,4399.7,1.0937]
[1757063003440,1.21816,4399.8,4399.7,0.7182]
[1757063003944,1.21816,4399.8,4399.7,1.0937]
[1757063004145,0.64206,4399.8,4399.7,1.0937]
[1757063004345,0.40906,4399.8,4399.7,1.0937]
[1757063004942,0.40906,4399.8,4399.7,1.50276]
[1757063005443,0.40906,4399.8,4399.7,1.27176]
[1757063005650,0.64206,4399.8,4399.7,1.50276]
[1757063005851,0.98536,4399.8,4399.7,1.27176]
[1757063006053,0.98536,4399.8,4399.7,1.50276]
[1757063006257,0.98536,4399.8,4399.7,1.27176]
[1757063006555,0.98536,4399.8,4399.7,1.50276]
[1757063006951,1.21816,4399.8,4399.7,0.8627]
[1757063007251,1.21816,4399.8,4399.7,1.0937]
[1757063007850,0.4658,4399.3,4398.7,2.674]
[1757063008047,0.64195,4398.8,4398.7,0.6236]
[1757063008248,0.87495,4398.8,4398.7,1.50286]
[1757063008448,0.87495,4398.8,4398.7,1.0937]
[1757063008654,1.21825,4398.8,4398.7,1.50286]
[1757063009062,1.21825,4398.8,4398.7,0.8627]
[1757063009263,1.21825,4398.8,4398.7,1.50286]
[1757063009464,1.21825,4398.8,4398.7,1.0937]
[1757063010261,1.21825,4398.8,4398.7,0.8627]
[1757063010565,1.21825,4398.8,4398.7,1.0937]
[1757063012565,0.233,4398.9,4398.8,1.02375]
[1757063012766,0.64214,4398.9,4398.8,1.27185]
[1757063012969,0.98544,4398.9,4398.8,1.27185]
[1757063015069,0.98544,4398.9,4398.8,4.17785]
[1757063015070,1.21824,4398.9,4398.8,4.17785]
[1757063015666,1.21824,4398.9,4398.8,3.7687]
[1757063016167,1.21824,4398.9,4398.8,3.3932]
[1757063016368,1.21824,4398.9,4398.8,3.1612]
[1757063016567,1.21824,4398.9,4398.8,3.3932]
[1757063016867,1.21824,4398.9,4398.8,3.7687]
[1757063019168,1.21824,4398.9,4398.8,3.5367]
[1757063019370,1.21824,4398.9,4398.8,3.7687]
[1757063020969,1.21824,4398.9,4398.8,1.0947]
[1757063021265,1.21824,4398.9,4398.8,0.8627]
[1757063021468,0.40919,4398.3,4398.2,2.9131]
[1757063021768,0.64219,4398.3,4398.2,1.0937]
[1757063022367,0.64219,4398.3,4398.2,1.5029]
[1757063022574,0.40919,4398.3,4398.2,1.0937]
[1757063023071,0.40919,4398.3,4398.2,1.5029]
[1757063023372,0.40919,4398.3,4398.2,1.0937]
[1757063023567,0.40919,4398.3,4398.2,1.5029]
[1757063023771,0.40919,4398.3,4398.2,1.50291]
[1757063023976,0.4092,4398.4,4398.3,1.27189]
[1757063024270,0.233,4398.8,4398.7,0.40916]
[1757063024474,0.40913,4399.1,4399.0,1.0002]
[1757063024772,0.40913,4399.1,4399.0,1.2312]
[1757063025471,0.40911,4399.3,4399.2,1.27182]
[1757063025771,0.40906,4399.8,4399.7,0.8627]
[1757063025971,0.40906,4399.8,4399.7,1.50277]
[1757063026368,0.40906,4399.8,4399.7,1.0937]
[1757063026575,0.40906,4399.8,4399.7,1.50277]
[1757063026770,4.23042,4400.0,4399.9,1.27175]
[1757063026771,3.84985,4400.0,4399.9,1.27175]
[1757063026966,0.40905,4400.0,4399.9,1.50275]
[1757063027166,0.40905,4400.0,4399.9,1.0937]
[1757063027673,0.64205,4400.0,4399.9,1.0937]
[1757063028075,0.99395,4400.0,4399.9,1.0937]
[1757063028574,1.24345,4400.0,4399.9,1.0937]
[1757063028769,1.24345,4400.0,4399.9,0.8627]
[1757063029076,1.24345,4400.0,4399.9,1.0937]
[1757063029470,1.24345,4400.0,4399.9,0.8627]
[1757063029681,1.38435,4400.0,4399.9,1.0937]
[1757063030778,1.16354,4400.0,4399.5,0.3496]
[1757063031075,1.26518,4399.6,4399.5,0.2441]
[1757063031265,1.26518,4399.6,4399.5,0.231]
[1757063031876,1.26518,4399.6,4399.2,0.3496]
[1757063032076,1.26527,4398.8,4398.7,1.24177]
[1757063032277,1.26527,4398.8,4398.7,1.0636]
[1757063032477,1.26527,4398.8,4398.7,0.8326]
[1757063033072,1.26527,4398.8,4398.7,0.4751]
[1757063033274,1.05428,4398.5,4398.4,2.9181]
[1757063033468,1.40618,4398.5,4398.4,3.7376]
[1757063033671,0.91338,4398.5,4398.4,4.14679]
[1757063033970,0.40918,4398.5,4398.4,4.14679]
[1757063034178,0.40918,4398.5,4398.4,7.35459]
[1757063034769,0.40917,4398.6,4398.5,0.40917]
[1757063034974,0.40917,4398.6,4398.5,1.39447]
[1757063035175,0.66387,4398.7,4398.6,0.40917]
[1757063035375,0.66387,4398.7,4398.6,1.47277]
[1757063035574,0.3519,4398.8,4398.7,0.40917]
[1757063035773,1.01576,4398.8,4398.7,1.24177]
[1757063036485,0.40915,4398.9,4398.8,1.24176]
[1757063036872,0.66385,4398.9,4398.8,1.24176]
[1757063037579,1.01575,4398.9,4398.8,1.24176]
[1757063039179,1.26525,4398.9,4398.8,0.8326]
[1757063039378,1.26525,4398.9,4398.8,1.0636]
[1757063040074,1.26525,4398.9,4398.8,1.47276]
[1757063040381,0.66385,4398.9,4398.8,1.47276]
[1757063040680,1.01575,4398.9,4398.8,1.47276]
[1757063040980,1.26525,4398.9,4398.8,1.47276]
[1757063041281,0.40915,4398.9,4398.8,1.47276]
[1757063041784,1.01575,4398.9,4398.8,1.47276]
[1757063042282,0.6066,4398.9,4398.8,1.47276]
[1757063042485,1.01575,4398.9,4398.8,1.47276]
[1757063043183,1.01575,4398.9,4398.8,1.24176]
[1757063043382,1.01575,4398.9,4398.8,1.47276]
[1757063044283,0.8561,4398.9,4398.8,1.47276]
[1757063045177,1.26525,4398.9,4398.8,1.47276]
[1757063045881,0.8561,4398.9,4398.8,1.47276]
[1757063046079,0.6066,4399.3,4399.2,0.483]
[1757063046281,0.40908,4399.6,4399.5,1.39438]
[1757063046481,0.40908,4399.6,4399.5,1.62538]
[1757063046690,0.66378,4399.6,4399.5,1.62538]
[1757063046889,1.01568,4399.6,4399.5,1.62538]
[1757063047288,1.01568,4399.6,4399.5,1.2163]
[1757063047486,1.26518,4399.6,4399.5,1.2163]
[1757063047678,1.26518,4399.6,4399.5,1.0636]
[1757063047885,1.26518,4399.6,4399.5,1.24169]
[1757063048086,1.26518,4399.6,4399.5,1.47269]
[1757063048287,1.26518,4399.6,4399.5,0.8326]
[1757063048486,1.26518,4399.6,4399.5,1.0636]
[1757063049986,1.26518,4399.6,4399.5,1.47269]
[1757063050486,1.26518,4399.6,3881.0,0.00510454]
[1757063050487,1.26523,4399.2,4399.1,1.24172]
[1757063050689,1.26523,4399.2,4399.1,0.4751]
[1757063050889,1.26523,4399.2,4398.9,0.40914]
[1757063050890,1.40614,4399.0,4398.9,0.65324]
[1757063051087,1.40614,4399.0,4398.9,0.88424]
[1757063051289,1.40614,4399.0,4398.9,1.23384]
[1757063052186,1.40614,4399.0,4398.9,1.47274]
[1757063052382,0.4092,4398.5,4398.4,0.4092]
[1757063052695,1.26532,4398.2,4398.1,0.65332]
[1757063052986,1.26532,4398.2,4398.1,0.88432]
[1757063053293,1.26532,4398.2,4398.1,0.2441]
[1757063053490,1.26532,4398.2,4398.1,0.4751]
[1757063053690,4.47312,4398.2,4398.1,0.4751]
[1757063053992,0.40922,4398.1,4398.0,2.45116433]
[1757063054191,1.26532,4398.1,4398.0,2.45116433]
[1757063054393,1.26532,4398.1,4398.0,2.68216433]
[1757063055697,1.26532,4398.1,4398.0,2.45116433]
[1757063055994,1.26532,4398.1,4398.0,0.231]
[1757063056191,0.5042,4397.9,4397.8,0.2441]
[1757063056393,1.26534,4397.9,4397.8,0.2441]
[1757063056696,1.26535,4397.8,4397.7,0.8326]
[1757063056894,1.26535,4397.8,4397.7,1.0636]
[1757063057103,1.26535,4397.8,4397.6,0.40927]
[1757063057292,1.26536,4397.7,4397.6,0.5937]
[1757063057493,1.26536,4397.7,4397.6,1.23397]
[1757063057688,1.26536,4397.7,4397.6,1.47287]
[1757063057888,0.40926,4397.8,4397.7,0.40925]
[1757063058100,0.64856,4397.8,4397.7,1.24655]
[1757063058300,1.25206,4397.8,4397.7,0.8373]
[1757063058500,1.25206,4397.8,4397.7,0.2385]
[1757063059001,1.25208,4397.5,4397.4,1.00078]
[1757063059196,1.25208,4397.5,4397.4,1.47758]
[1757063059897,1.25208,4397.5,4397.4,1.0683]
[1757063060201,1.25208,4397.5,4397.4,1.47759]
[1757063060500,1.25208,4397.5,4397.4,1.0683]
[1757063060894,0.8428,4397.5,4397.4,1.47759]
[1757063061093,1.25208,4397.5,4397.4,1.0683]
[1757063062295,1.25208,4397.5,4397.4,0.8373]
[1757063062494,1.25208,4397.5,4397.4,1.0683]
[1757063065302,1.25208,4397.5,4397.4,1.24659]
[1757063065498,1.25208,4397.5,4397.4,1.47759]
[1757063065694,1.39558,4397.5,4397.4,0.231]
[1757063066701,1.39558,4397.5,4397.4,0.4695]
[1757063066899,1.39558,4397.5,4397.4,0.2385]
[1757063067098,1.39558,4397.5,4397.4,0.4695]
[1757063067698,1.39558,4397.5,4397.4,0.2385]
[1757063068001,1.39558,4397.5,4397.4,0.4695]
[1757063068395,1.39558,4397.5,4397.4,0.87879]
[1757063068596,1.39558,4397.5,4397.4,1.47759]
[1757063068806,0.40928,4397.5,4397.4,1.47759]
[1757063069200,0.2393,4397.6,4397.5,0.1369]
[1757063069399,3.2078,4397.7,4397.5,0.1369]
[1757063069400,3.2078,4397.7,4397.6,1.24657]
[1757063070105,3.61706,4397.7,4397.6,1.47757]
[1757063070407,4.21646,4397.7,4397.6,1.47757]
[1757063070598,4.45986,4397.7,4397.6,1.24657]
[1757063070798,4.45986,4397.7,4397.6,1.47757]
[1757063071202,4.45986,4397.7,4397.6,1.24657]
[1757063071704,4.45986,4397.7,4397.6,1.47757]
[1757063072404,4.45986,4397.7,4397.6,1.24657]
[1757063072607,4.45986,4397.7,4397.6,1.47757]
[1757063074808,4.45898548,4397.7,4397.6,1.47757]
[1757063075409,4.45898548,4397.7,4397.6,1.0683]
[1757063075613,4.45898548,4397.7,4397.6,1.47757]
[1757063076912,4.45898548,4397.7,4397.6,1.75842536]
[1757063077804,4.45898548,4397.7,4397.6,0.92862536]
[1757063078011,4.45898548,4397.7,4397.6,0.51185536]
[1757063078211,4.45898548,4397.7,4397.6,0.28085536]
[1757063078509,4.45898548,4397.7,4397.6,0.51185536]
[1757063078809,4.45898548,4397.7,4397.6,0.28085536]
[1757063079007,4.45898548,4397.7,4397.6,0.51185536]
[1757063079206,4.45986,4397.7,4397.6,0.51185536]
[1757063079404,4.45986,4397.7,4397.6,0.28085536]
[1757063079607,4.45986,4397.7,4397.6,0.51185536]
[1757063080913,4.45986,4397.7,4397.6,0.28085536]
[1757063081099,4.45986,4397.7,4397.6,0.51185536]
[1757063081506,4.45986,4397.7,4397.6,0.28085536]
[1757063081706,4.45986,4397.7,4397.6,0.51185536]
[1757063081909,4.45986,4397.7,4397.6,0.28085536]
[1757063082102,4.45986,4397.7,4397.6,0.51185536]
[1757063082910,4.45986,4397.7,4397.6,0.28085536]
[1757063083111,4.45986,4397.7,4397.6,0.51185536]
[1757063083711,4.45986,4397.7,4397.6,0.28085536]
[1757063083916,4.45986,4397.7,4397.6,0.51185536]
[1757063084208,0.40932,4397.1,4397.0,2.86048433]
[1757063084414,1.25212,4397.1,4397.0,3.37355938]
[1757063084616,1.25212,4397.1,4397.0,3.09148433]
[1757063084819,1.25212,4397.1,4397.0,2.68216433]
[1757063085017,1.25212,4397.1,4397.0,2.45116433]
[1757063085320,1.25212,4397.1,4397.0,2.68216433]
[1757063086213,1.25212,4397.1,4397.0,2.45116433]
[1757063086419,1.25212,4397.1,4397.0,3.09149433]
[1757063086620,1.25212,4397.1,4397.0,3.44449433]
[1757063087119,1.25212,4397.1,4397.0,1.23183]
[1757063087323,0.2393,4397.1,4397.0,1.61453]
[1757063087524,3.4471,4397.2,4397.1,1.24662]
[1757063087825,3.6905,4397.2,4397.1,1.24662]
[1757063088026,4.0506,4397.2,4397.1,1.24662]
[1757063088421,4.45991,4397.2,4397.1,0.8373]
[1757063088618,4.45991,4397.2,4397.1,1.47762]
[1757063088820,4.45991,4397.2,4397.1,1.0683]
[1757063089026,4.45991,4397.2,4397.1,0.8373]
[1757063089427,4.45991,4397.2,4397.1,1.47762]
[1757063089729,4.45991,4397.2,4397.1,1.0683]
[1757063090924,4.45991,4397.2,4397.1,1.47762]
[1757063091121,4.45991,4397.2,4397.1,1.0683]
[1757063091322,0.65136,4396.6,4396.5,0.9676]
[1757063091528,0.65136,4396.6,4396.5,1.1986]
[1757063092427,0.65136,4396.6,4396.5,0.9676]
[1757063092628,0.65136,4396.6,4396.5,1.37696]
[1757063092830,1.21686,4396.6,4396.5,1.60796]
[1757063093021,0.87796,4396.6,4396.5,1.60796]
[1757063093529,1.21686,4396.6,4396.5,1.1986]
[1757063093729,1.21686,4396.6,4396.5,1.60797]
[1757063093925,0.87796,4396.6,4396.5,1.60797]
[1757063095128,0.87796,4396.6,4396.5,1.37697]
[1757063095331,0.40936,4396.6,4396.5,1.60797]
[1757063095531,0.40936,4396.7,4396.6,1.22425]
[1757063096230,0.40936,4396.7,4396.6,1.52797506]
[1757063097731,0.40936,4396.7,4396.6,1.52794679]
[1757063099132,0.40936,4396.7,4396.6,1.75894679]
[1757063099732,0.40935,4396.8,4396.7,1.22424]
[1757063099933,0.40935,4396.8,4396.7,1.52793679]
[1757063100122,0.65135,4396.8,4396.7,1.11859679]
[1757063100327,1.21685,4396.8,4396.7,1.34959679]
[1757063100832,1.21685,4396.8,4396.7,1.75894679]
[1757063101434,1.21685,4396.8,4396.7,1.11859679]
[1757063101825,3.61712,4397.1,4397.0,1.36923]
[1757063102028,4.08572,4397.1,4397.0,1.90392679]
[1757063102527,4.42462,4397.1,4397.0,1.90392679]
[1757063103035,4.42462,4397.1,4397.0,1.49459679]
[1757063103336,4.42462,4397.1,4397.0,1.90392679]
[1757063104334,4.42462,4397.1,4397.0,1.67292679]
[1757063104535,4.42462,4397.1,4397.0,1.90392679]
[1757063104834,3.2078,4397.1,4397.0,1.90392679]
[1757063105035,0.242,4397.5,4397.4,1.22418]
[1757063105330,3.2078,4397.7,4397.6,1.22417]
[1757063105633,3.4498,4398.4,4398.3,0.8867]
[1757063105830,3.2078,4398.4,4398.3,1.75879679]
[1757063107041,1.20459471,4399.2,4399.1,1.22403]
[1757063107042,4.65439471,4399.2,4399.1,1.22403]
[1757063107334,4.65439471,4399.2,4399.1,1.75872679]
[1757063107838,1.44659471,4399.2,4399.1,1.75872679]
[1757063108438,0.8075,4399.2,4399.1,0.64109679]
[1757063108733,0.8075,4399.2,4399.1,0.53469679]
[1757063108931,0.8075,4399.2,4399.1,1.52772679]
[1757063109136,0.4686,4399.2,4399.1,1.75872679]
[1757063109336,0.242,4399.2,4399.1,1.75872679]
[1757063109539,0.6511,4399.5,4399.4,0.8149]
[1757063109735,0.6511,4399.5,4399.4,1.34959679]
[1757063109938,0.242,4399.5,4399.4,1.34959679]
[1757063110137,0.6511,4399.5,4399.4,1.34959679]
[1757063110436,0.242,4399.5,4399.4,1.75870679]
[1757063110638,0.8777,4399.5,4399.4,1.34959679]
[1757063110839,1.2166,4399.5,4399.4,1.34959679]
[1757063111534,0.8777,4399.5,4399.4,1.34959679]
[1757063111840,1.2166,4399.5,4399.4,1.11859679]
[1757063112040,1.2166,4399.5,4399.4,1.34959679]
[1757063114444,0.40909,4399.6,4399.5,0.40909]
[1757063114640,0.40909,4399.6,4399.5,1.26359679]
[1757063114845,0.242,4399.7,4399.6,0.88658]
[1757063115044,0.242,4399.7,4399.6,1.19027679]
[1757063115244,0.40906,4399.9,4399.8,0.88657]
[1757063115438,4.42432,4400.3,4400.2,0.8149]
[1757063115639,4.42432,4400.3,4400.2,1.35394382]
[1757063116239,4.42432,4400.3,4400.2,1.76297382]
[1757063116448,4.08542,4400.3,4400.2,1.35394382]
[1757063116745,4.42432,4400.3,4400.2,1.76297382]
[1757063116936,4.08542,4400.3,4400.2,1.35394382]
[1757063117143,4.42432,4400.3,4400.2,1.76297382]
[1757063117446,4.42432,4400.3,4400.2,1.76275816]
[1757063117645,3.4498,4400.3,4400.2,1.76275816]
[1757063117842,3.2078,4400.3,4400.2,1.76275816]
[1757063118645,1.22889,4400.7,4400.6,1.22879]
[1757063118848,1.22889,4400.7,4400.6,1.76761816]
[1757063119748,1.22889,4400.7,4400.6,0.30782816]
[1757063119948,1.22889,4400.7,4399.0,2.19073]
[1757063119949,0.88417,4399.8,4399.7,0.98917]
[1757063120149,4.09197,4399.8,4399.7,1.22017]
[1757063121649,3.6829,4399.8,4399.7,1.45987]
[1757063121851,4.09197,4399.8,4399.7,1.45987]
[1757063122042,3.6829,4399.8,4399.7,1.45987]
[1757063122649,4.09197,4399.8,4399.7,1.22887]
[1757063122948,4.09197,4399.8,4399.7,1.45987]
[1757063123146,3.6829,4399.8,4399.7,1.45987]
[1757063124748,4.09197,4399.8,4399.7,1.45987]
[1757063126245,4.09197,4399.8,4399.7,0.76517]
[1757063126450,4.25187,4399.8,4399.7,1.22017]
[1757063126757,4.09197,4399.8,4399.7,1.22017]
[1757063127048,4.25187,4399.8,4399.7,1.22017]
[1757063127247,4.09197,4399.8,4399.7,1.22017]
[1757063127848,3.6829,4399.8,4399.7,1.45987]
[1757063128359,4.09197,4399.8,4399.7,1.45987]
[1757063131347,3.6829,4399.8,4399.7,1.45987]
[1757063131546,3.2078,4399.8,4399.7,1.45987]
[1757063131753,3.61687,4399.8,4399.7,1.45987]
[1757063132053,3.2078,4399.8,4399.7,1.76442827]
[1757063132552,3.61687,4399.8,4399.7,1.76442827]
[1757063132854,3.2078,4399.8,4399.7,1.76442827]
[1757063133152,3.61687,4399.8,4399.7,1.76442827]
[1757063133653,3.2078,4399.8,4399.7,1.76442827]
[1757063134153,3.61687,4399.8,4399.7,1.76442827]
[1757063134353,3.2078,4399.8,4399.7,1.53342827]
[1757063134547,3.2078,4399.8,4399.7,1.76442827]
[1757063135954,3.4439,4399.8,4399.7,1.76442827]
[1757063136353,3.2078,4399.8,4399.7,1.76442827]
[1757063137853,0.4751,4400.2,4400.1,0.87274]
[1757063138059,0.6451,4400.6,4400.5,1.36449]
[1757063138253,0.8841,4400.6,4400.5,1.66904827]
[1757063138449,0.8841,4400.6,4400.5,1.90004827]
[1757063139551,0.4751,4400.6,4400.5,1.90004827]
[1757063139759,0.88409,4400.7,4400.6,1.22878]
[1757063139952,0.88409,4400.7,4400.6,1.53333827]
[1757063140453,0.88409,4400.7,4400.6,1.76433827]
[1757063140454,0.2361,4400.7,4400.6,1.76433827]
[1757063140657,0.88404,4401.2,4401.1,0.5801]
[1757063140954,1.04394,4401.2,4401.1,0.30455827]
[1757063141159,1.04394,4401.2,4401.1,0.94450827]
[1757063141658,1.04394,4401.2,4401.1,1.30060827]
[1757063141853,1.04394,4401.2,4401.1,1.06960827]
[1757063142053,1.04394,4401.2,4401.1,1.30060827]
[1757063143056,0.4751,4401.2,4401.1,1.52460827]
[1757063143251,0.88404,4401.2,4401.1,1.52460827]
[1757063143855,0.4751,4401.2,4401.1,1.76430827]
[1757063145562,0.88404,4401.2,4401.1,1.76430827]
[1757063145859,0.4751,4401.2,4401.1,1.76430827]
[1757063146062,0.2361,4401.2,4401.1,1.76430827]
[1757063146460,0.64504,4401.2,4401.1,1.76430827]
[1757063147063,0.2361,4401.2,4401.1,1.76430827]
[1757063147264,0.64504,4401.2,4401.1,1.35535827]
[1757063147564,0.64504,4401.2,4401.1,1.76430827]
[1757063147755,0.64504,4401.2,4401.1,1.35535827]
[1757063147955,0.64504,4401.2,4401.1,1.76430827]
[1757063148861,0.64504,4401.2,4401.1,1.35535827]